[Event "Turkish Cup 2024"]
[Site "Denizli"]
[Date "2024.07.30"]
[Round "1"]
[White "Yondem, Suleyman Burak"]
[Black "Demirag, Batuhan"]
[Result "1/2-1/2"]
[ECO "B40"]
[WhiteElo "1555"]
[BlackElo "1912"]
[Annotator "ChessBase"]
[PlyCount "68"]
[EventDate "2024.08.01"]
[EventType "swiss"]
[EventCountry "TUR"]
[SourceTitle "playchess.com"]
[Source "ChessBase"]
[SourceQuality "1"]
[TimeControl "5400+30"]

1. e4 {[%emt 0:01:00]} c5 {[%emt 0:01:00]} 2. Nf3 {[%emt 0:00:00]} e6 {[%emt 0:00:00]} 3. b3 {[%emt 0:01:00]} b6 {[%emt 0:00:00]} 4. Bb2 {[%emt 0:00:00]} Bb7 {[%emt 0:00:30]} 5. Nc3 {[%emt 0:06:00]} d6 {[%emt 0:02:30]} 6. Bb5+ {[%emt 0:01:30]} Nd7 {[%emt 0:00:30]} 7. O-O {[%emt 0:00:30]} a6 {[%emt 0:00:30]} 8. Bxd7+ {[%emt 0:00:30]} Qxd7 {[%emt 0:00:00]} 9. d4 {[%emt 0:03:30]} Nf6 {[%emt 0:03:00]} 10. dxc5 {[%emt 0:11:30]} bxc5 {[%emt 0:00:30]} 11. Re1 {[%emt 0:10:30]} Be7 {[%emt 0:00:30]} 12. e5 {[%emt 0:04:30]} dxe5 {[%emt 0:00:30]} 13. Qxd7+ {[%emt 0:00:30]} Nxd7 {[%emt 0:00:00]} 14. Nxe5 {[%emt 0:00:30]} Nxe5 {[%emt 0:04:00]} 15. Rxe5 {[%emt 0:00:30]} O-O {[%emt 0:01:30]} 16. Rd1 {[%emt 0:06:30]} Rfd8 {[%emt 0:01:30]} 17. Ree1 {[%emt 0:02:30]} h5 {[%emt 0:05:30]} 18. Ba3 {[%emt 0:21:30]} Bc6 {[%emt 0:03:30]} 19. Rxd8+ {[%emt 0:08:52]} Rxd8 {[%emt 0:00:30]} 20. Rd1 {[%emt 0:00:00]} Rb8 {[%emt 0:02:30]} 21. Ne2 {[%emt 0:01:04]} Kf8 {[%emt 0:03:30]} 22. Nf4 {[%emt 0:03:51]} g6 {[%emt 0:00:30]} 23. Nd3 {[%emt 0:00:46]} Rd8 {[%emt 0:03:30]} 24. Re1 {[%emt 0:01:28]} Rd5 {[%emt 0:04:30]} 25. Re5 {[%emt 0:01:21]} Rxe5 {[%emt 0:01:30]} 26. Nxe5 {[%emt 0:00:09]} Be4 {[%emt 0:01:30]} 27. Nd3 {[%emt 0:03:55]} Bxd3 {[%emt 0:04:30]} 28. cxd3 {[%emt 0:00:30]} Ke8 {[%emt 0:00:00]} 29. Kf1 {[%emt 0:00:20]} Kd7 {[%emt 0:00:00]} 30. Ke2 {[%emt 0:00:00]} Bd6 {[%emt 0:00:30]} 31. h3 {[%emt 0:01:09]} Kc6 {[%emt 0:00:30]} 32. Bb2 {[%emt 0:00:30]} Kd5 {[%emt 0:00:30]} 33. Ke3 {[%emt 0:00:30]} f5 {[%emt 0:00:30]} 34. g4 {[%emt 0:00:30]} fxg4 {[%emt 0:17:30]} 1/2-1/2

[Event "Turkish Cup 2024"]
[Site "Denizli"]
[Date "2024.07.30"]
[Round "1"]
[White "Kaval, Zeynep Ruya"]
[Black "Demirci, Fatih"]
[Result "0-1"]
[ECO "A00"]
[WhiteElo "1552"]
[BlackElo "1885"]
[Annotator "NA"]
[PlyCount "154"]
[EventDate "2024.08.01"]
[EventType "swiss"]
[EventCountry "TUR"]
[SourceTitle "playchess.com"]
[Source "ChessBase"]
[SourceQuality "1"]
[TimeControl "5400+30"]

1. d3 {[%emt 0:01:00]} d5 {[%emt 0:01:00]} 2. g3 {[%emt 0:00:30]} Nf6 {[%emt 0:00:30]} 3. Bg2 {[%emt 0:00:30]} Bg4 {[%emt 0:02:30]} 4. Nc3 {[%emt 0:06:30]} c6 {[%emt 0:02:30]} 5. Bd2 {[%emt 0:06:30]} e5 {[%emt 0:02:30]} 6. f3 {[%emt 0:07:30]} Bh5 {[%emt 0:00:30]} 7. e4 {[%emt 0:01:30]} dxe4 {[%emt 0:01:30]} 8. dxe4 {[%emt 0:01:30]} Bc5 {[%emt 0:00:30]} 9. Qe2 {[%emt 0:02:30]} Nbd7 {[%emt 0:03:30]} 10. Be3 {[%emt 0:08:30]} Qb6 {[%emt 0:02:30]} 11. Nd1 {[%emt 0:07:30]} Rd8 {[%emt 0:05:30]} 12. g4 {[%emt 0:03:30]} Bg6 {[%emt 0:00:30]} 13. Nh3 {[%emt 0:04:30]} Nf8 {[%emt 0:01:30]} 14. Nhf2 {[%emt 0:06:30]} Ne6 {[%emt 0:00:30]} 15. Nd3 {[%emt 0:04:30]} Bxe3 {[%emt 0:01:30]} 16. Qxe3 {[%emt 0:01:30]} Nf4 {[%emt 0:03:30]} 17. Bf1 {[%emt 0:07:30]} Qa5+ {[%emt 0:06:30]} 18. Nc3 {[%emt 0:01:30]} Ne6 {[%emt 0:01:30]} 19. Be2 {[%emt 0:05:30]} Nd7 {[%emt 0:03:30]} 20. O-O {[%emt 0:00:30]} f6 {[%emt 0:03:30]} 21. Bd1 {[%emt 0:02:44]} Qb6 {[%emt 0:02:30]} 22. Qxb6 {[%emt 0:00:34]} Nxb6 {[%emt 0:01:30]} 23. b3 {[%emt 0:00:15]} Ke7 {[%emt 0:02:30]} 24. Ne2 {[%emt 0:01:08]} Nd7 {[%emt 0:00:30]} 25. Kf2 {[%emt 0:01:32]} h5 {[%emt 0:04:30]} 26. h3 {[%emt 0:02:40]} hxg4 {[%emt 0:00:30]} 27. hxg4 {[%emt 0:00:02]} Rh2+ {[%emt 0:00:30]} 28. Ke3 {[%emt 0:01:50]} a5 {[%emt 0:04:30]} 29. a4 {[%emt 0:00:54]} Rdh8 {[%emt 0:01:30]} 30. Nf2 {[%emt 0:01:28]} Ndc5 {[%emt 0:02:30]} 31. c3 {[%emt 0:00:31]} Ng5 {[%emt 0:03:30]} 32. Bc2 {[%emt 0:02:46]} Nh3 {[%emt 0:04:30]} 33. Nxh3 {[%emt 0:00:48]} R2xh3 {[%emt 0:01:30]} 34. Rad1 {[%emt 0:00:36]} Bf7 {[%emt 0:00:30]} 35. Rb1 {[%emt 0:00:56]} Be6 {[%emt 0:02:30]} 36. Rg1 {[%emt 0:01:19]} Bc8 {[%emt 0:00:30]} 37. g5 {[%emt 0:01:46]} Ne6 {[%emt 0:00:30]} 38. gxf6+ {[%emt 0:01:06]} gxf6 {[%emt 0:00:30]} 39. Rbf1 {[%emt 0:00:42]} Ng5 {[%emt 0:00:30]} 40. Rf2 {[%emt 0:01:03]} Be6 {[%emt 0:02:30]} 41. Rgf1 {[%emt 0:00:48]} Rd8 {[%emt 0:02:30]} 42. c4 {[%emt 0:01:18]} Rb8 {[%emt 0:05:53]} 43. Nc3 {[%emt 0:00:40]} Bf7 {[%emt 0:01:19]} 44. Bd1 {[%emt 0:00:58]} Ne6 {[%emt 0:00:29]} 45. Rg1 {[%emt 0:01:45]} Rh7 {[%emt 0:02:26]} 46. Rfg2 {[%emt 0:00:58]} Rhh8 {[%emt 0:02:47]} 47. Rd2 {[%emt 0:00:21]} Rh4 {[%emt 0:00:59]} 48. Rdg2 {[%emt 0:00:25]} Rd8 {[%emt 0:00:40]} 49. Rd2 {[%emt 0:01:26]} Rd4 {[%emt 0:00:05]} 50. Ne2 {[%emt 0:00:07]} Rxd2 {[%emt 0:01:14]} 51. Kxd2 {[%emt 0:00:01]} Ng5 {[%emt 0:00:00]} 52. Ke3 {[%emt 0:01:01]} Kd6 {[%emt 0:01:33]} 53. Ng3 {[%emt 0:00:32]} Kc5 {[%emt 0:00:20]} 54. Rg2 {[%emt 0:00:28]} Be6 {[%emt 0:00:48]} 55. Kd3 {[%emt 0:01:04]} Rh8 {[%emt 0:02:19]} 56. Kc3 {[%emt 0:00:10]} Rh3 {[%emt 0:00:41]} 57. Kd3 {[%emt 0:00:57]} Kb4 {[%emt 0:01:27]} 58. Kc2 {[%emt 0:01:02]} Rh4 {[%emt 0:00:25]} 59. Kd3 {[%emt 0:00:20]} Rh3 {[%emt 0:02:50]} 60. Ke3 {[%emt 0:00:37]} Rh8 {[%emt 0:01:21]} 61. Rd2 {[%emt 0:00:32]} Kc5 {[%emt 0:00:13]} 62. Rg2 {[%emt 0:00:50]} Rg8 {[%emt 0:00:53]} 63. Nh5 {[%emt 0:00:50]} Nh7 {[%emt 0:02:37]} 64. Rg7 {[%emt 0:00:30]} Rxg7 {[%emt 0:01:09]} 65. Nxg7 {[%emt 0:00:01]} Bf7 {[%emt 0:00:16]} 66. Nf5 {[%emt 0:00:12]} Ng5 {[%emt 0:00:26]} 67. Nh6 {[%emt 0:00:48]} Be6 {[%emt 0:00:56]} 68. f4 {[%emt 0:00:28]} exf4+ {[%emt 0:02:21]} 69. Kxf4 {[%emt 0:00:02]} Kd4 {[%emt 0:00:01]} 70. Bc2 {[%emt 0:01:30]} Kc3 {[%emt 0:00:50]} 71. Bb1 {[%emt 0:00:06]} Kb2 {[%emt 0:00:15]} 72. Bd3 {[%emt 0:00:05]} Kxb3 {[%emt 0:00:15]} 73. e5 {[%emt 0:00:02]} Nh3+ {[%emt 0:00:00]} 74. Ke4 {[%emt 0:00:24]} Nf2+ {[%emt 0:00:27]} 75. Ke3 {[%emt 0:00:39]} Nxd3 {[%emt 0:00:30]} 76. Kxd3 {[%emt 0:00:00]} Bxc4+ {[%emt 0:00:00]} 77. Kd4 {[%emt 0:00:00]} fxe5+ {[%emt 0:00:00]} 0-1

[Event "Turkish Cup 2024"]
[Site "Denizli"]
[Date "2024.07.30"]
[Round "1"]
[White "Akin, Mustafa Mirac"]
[Black "Yardimci, Can"]
[Result "0-1"]
[ECO "B22"]
[WhiteElo "1551"]
[BlackElo "1930"]
[Annotator "ChessBase"]
[PlyCount "57"]
[EventDate "2024.08.01"]
[EventType "swiss"]
[EventCountry "TUR"]
[SourceTitle "playchess.com"]
[Source "ChessBase"]
[SourceQuality "1"]
[TimeControl "5400+30"]

1. e4 {[%emt 0:01:00]} c5 {[%emt 0:01:00]} 2. c3 {[%emt 0:00:30]} Nf6 {[%emt 0:00:30]} 3. e5 {[%emt 0:00:30]} Nd5 {[%emt 0:00:30]} 4. Nf3 {[%emt 0:00:00]} Nc6 {[%emt 0:00:30]} 5. d4 {[%emt 0:00:00]} cxd4 {[%emt 0:00:30]} 6. cxd4 {[%emt 0:00:00]} d6 {[%emt 0:00:30]} 7. Bc4 {[%emt 0:00:00]} dxe5 {[%emt 0:00:00]} 8. Qb3 {[%emt 0:18:30]} e6 {[%emt 0:03:00]} 9. Nxe5 {[%emt 0:07:30]} Nxd4 {[%emt 0:01:30]} 10. Bb5+ {[%emt 0:20:30]} Bd7 {[%emt 0:06:30]} 11. Bxd7+ {[%emt 0:03:30]} Qxd7 {[%emt 0:00:00]} 12. Qc4 {[%emt 0:04:30]} Qc7 {[%emt 0:01:00]} 13. Qxc7 {[%emt 0:16:30]} Nxc7 {[%emt 0:00:30]} 14. Kd1 {[%emt 0:00:00]} f6 {[%emt 0:02:30]} 15. Nd3 {[%emt 0:01:00]} O-O-O {[%emt 0:01:30]} 16. Be3 {[%emt 0:02:30]} e5 {[%emt 0:01:30]} 17. Nc3 {[%emt 0:02:30]} Nce6 {[%emt 0:01:30]} 18. Rc1 {[%emt 0:05:54]} Kb8 {[%emt 0:02:30]} 19. f3 {[%emt 0:02:54]} Nxf3 {[%emt 0:02:30]} 20. gxf3 {[%emt 0:01:23]} Rxd3+ {[%emt 0:00:30]} 21. Ke2 {[%emt 0:00:00]} Rd8 {[%emt 0:00:00]} 22. Rhd1 {[%emt 0:00:51]} Bc5 {[%emt 0:01:00]} 23. Bxc5 {[%emt 0:00:55]} Nxc5 {[%emt 0:00:00]} 24. Nd5 {[%emt 0:03:26]} Ne6 {[%emt 0:00:00]} 25. Ke3 {[%emt 0:00:07]} Rd7 {[%emt 0:00:30]} 26. Nc3 {[%emt 0:03:29]} Rhd8 {[%emt 0:00:30]} 27. Rxd7 {[%emt 0:00:58]} Rxd7 {[%emt 0:00:30]} 28. Ke4 {[%emt 0:01:20]} a6 {[%emt 0:02:30]} 29. Nd5 {[%emt 0:03:46]} 0-1

[Event "Turkish Cup 2024"]
[Site "Denizli"]
[Date "2024.07.30"]
[Round "1"]
[White "Biyikoglu, Muhammet Ali"]
[Black "Akbas, Kaan"]
[Result "0-1"]
[ECO "D02"]
[WhiteElo "1542"]
[BlackElo "1990"]
[Annotator "RC"]
[PlyCount "60"]
[EventDate "2024.08.01"]
[EventType "swiss"]
[EventCountry "TUR"]
[SourceTitle "playchess.com"]
[Source "ChessBase"]
[SourceQuality "1"]
[TimeControl "5400+30"]

1. d4 {[%emt 0:01:00]} Nf6 {[%emt 0:01:00]} 2. Nf3 {[%emt 0:00:30]} d5 {[%emt 0:00:30]} 3. Bf4 {[%emt 0:00:00]} c5 {[%emt 0:00:30]} 4. e3 {[%emt 0:00:00]} Nc6 {[%emt 0:00:00]} 5. c3 {[%emt 0:00:00]} Qb6 {[%emt 0:01:00]} 6. Qc2 {[%emt 0:00:00]} Bf5 {[%emt 0:00:30]} 7. Qb3 {[%emt 0:00:30]} c4 {[%emt 0:02:30]} 8. Qxb6 {[%emt 0:01:30]} axb6 {[%emt 0:00:00]} 9. Nbd2 {[%emt 0:01:30]} b5 {[%emt 0:01:00]} 10. Be2 {[%emt 0:02:30]} h6 {[%emt 0:03:30]} 11. Ne5 {[%emt 0:01:30]} e6 {[%emt 0:00:30]} 12. f3 {[%emt 0:01:30]} b4 {[%emt 0:02:30]} 13. O-O {[%emt 0:02:30]} Nh5 {[%emt 0:08:30]} 14. Bg3 {[%emt 0:04:30]} Nxg3 {[%emt 0:00:30]} 15. hxg3 {[%emt 0:00:00]} Nxe5 {[%emt 0:00:30]} 16. dxe5 {[%emt 0:00:00]} Bc5 {[%emt 0:00:30]} 17. Kf2 {[%emt 0:00:30]} Kd7 {[%emt 0:01:30]} 18. Rfc1 {[%emt 0:04:30]} bxc3 {[%emt 0:01:30]} 19. bxc3 {[%emt 0:00:30]} Ba3 {[%emt 0:00:30]} 20. Rf1 {[%emt 0:01:30]} Bb2 {[%emt 0:00:30]} 21. e4 {[%emt 0:00:30]} Bxa1 {[%emt 0:01:30]} 22. Rxa1 {[%emt 0:00:30]} Bg6 23. a4 {[%emt 0:00:30]} Ra6 {[%emt 0:00:00]} 24. Bd1 {[%emt 0:01:30]} b5 {[%emt 0:00:30]} 25. Rb1 {[%emt 0:01:30]} bxa4 {[%emt 0:00:30]} 26. Rb5 {[%emt 0:00:30]} a3 {[%emt 0:01:30]} 27. exd5 {[%emt 0:01:30]} a2 {[%emt 0:00:00]} 28. Nxc4 {[%emt 0:00:30]} a1=Q {[%emt 0:01:00]} 29. Rb7+ {[%emt 0:00:30]} Kc8 {[%emt 0:00:00]} 30. Nd6+ {[%emt 0:00:30]} Rxd6 {[%emt 0:00:00]} 0-1

[Event "Turkish Cup 2024"]
[Site "Denizli"]
[Date "2024.07.30"]
[Round "1"]
[White "Tekaslan, Yusuf Batu"]
[Black "Sezis, Doruk"]
[Result "0-1"]
[ECO "D02"]
[WhiteElo "1513"]
[BlackElo "1932"]
[Annotator "ChessBase"]
[PlyCount "54"]
[EventDate "2024.08.01"]
[EventType "swiss"]
[EventCountry "TUR"]
[SourceTitle "playchess.com"]
[Source "ChessBase"]
[SourceQuality "1"]
[TimeControl "5400+30"]

1. d4 {[%emt 0:01:00]} Nf6 {[%emt 0:01:00]} 2. Nf3 {[%emt 0:00:00]} e6 {[%emt 0:00:30]} 3. Bf4 {[%emt 0:00:00]} c5 {[%emt 0:00:00]} 4. e3 {[%emt 0:00:30]} d5 {[%emt 0:00:00]} 5. c3 {[%emt 0:00:30]} Bd6 {[%emt 0:00:30]} 6. Bg3 {[%emt 0:00:00]} Nc6 {[%emt 0:00:30]} 7. Bd3 {[%emt 0:01:00]} O-O {[%emt 0:00:30]} 8. Nbd2 {[%emt 0:01:30]} b6 {[%emt 0:00:30]} 9. Bb5 {[%emt 0:06:30]} Ne7 {[%emt 0:05:30]} 10. Bxd6 {[%emt 0:08:30]} Qxd6 {[%emt 0:00:30]} 11. Ne5 {[%emt 0:02:30]} a6 {[%emt 0:01:30]} 12. Bd3 {[%emt 0:02:30]} Nd7 {[%emt 0:00:30]} 13. Nxd7 {[%emt 0:10:30]} Bxd7 {[%emt 0:00:30]} 14. Qh5 {[%emt 0:02:30]} f5 {[%emt 0:08:30]} 15. Nf3 {[%emt 0:05:30]} Nc6 {[%emt 0:01:30]} 16. g4 {[%emt 0:19:30]} g6 {[%emt 0:03:30]} 17. Qh6 {[%emt 0:01:30]} fxg4 {[%emt 0:19:30]} 18. Bxg6 {[%emt 0:12:30]} Qe7 {[%emt 0:00:30]} 19. Nh4 {[%emt 0:12:45]} hxg6 {[%emt 0:01:30]} 20. Nxg6 {[%emt 0:00:30]} Qf6 {[%emt 0:00:00]} 21. Nxf8 {[%emt 0:02:49]} Qxh6 {[%emt 0:00:00]} 22. Nxd7 {[%emt 0:00:00]} cxd4 {[%emt 0:00:30]} 23. exd4 {[%emt 0:00:17]} Rd8 {[%emt 0:00:30]} 24. Nxb6 {[%emt 0:00:58]} e5 {[%emt 0:00:30]} 25. Rg1 {[%emt 0:00:07]} exd4 {[%emt 0:00:30]} 26. Rxg4+ {[%emt 0:00:37]} Kf7 {[%emt 0:00:30]} 27. cxd4 {[%emt 0:00:22]} Nb4 {[%emt 0:00:00]} 0-1

[Event "Turkish Cup 2024"]
[Site "Denizli"]
[Date "2024.07.31"]
[Round "2"]
[White "Gunduz, Umut Erdem"]
[Black "Sanan, Demirhan"]
[Result "1-0"]
[ECO "B20"]
[WhiteElo "2276"]
[BlackElo "1803"]
[Annotator "RC"]
[PlyCount "79"]
[EventDate "2024.08.01"]
[EventType "swiss"]
[EventCountry "TUR"]
[SourceTitle "playchess.com"]
[Source "ChessBase"]
[SourceQuality "1"]
[TimeControl "5400+30"]

1. e4 {[%emt 0:03:00]} c5 {[%emt 0:01:00]} 2. b4 {[%emt 0:00:30]} cxb4 {[%emt 0:00:30]} 3. a3 {[%emt 0:00:30]} e6 {[%emt 0:04:30]} 4. axb4 {[%emt 0:14:30]} Bxb4 {[%emt 0:01:30]} 5. Bb2 {[%emt 0:00:00]} Nf6 {[%emt 0:02:30]} 6. e5 {[%emt 0:05:00]} Nd5 {[%emt 0:00:30]} 7. Qg4 {[%emt 0:00:30]} O-O {[%emt 0:06:30]} 8. Nf3 {[%emt 0:00:30]} Be7 {[%emt 0:04:30]} 9. c4 {[%emt 0:09:30]} Nb4 {[%emt 0:00:30]} 10. Na3 {[%emt 0:00:00]} f5 {[%emt 0:05:30]} 11. Qg3 {[%emt 0:01:00]} b6 {[%emt 0:02:30]} 12. Be2 {[%emt 0:01:30]} Bb7 {[%emt 0:00:30]} 13. O-O {[%emt 0:00:30]} N8a6 {[%emt 0:18:30]} 14. Bc3 {[%emt 0:05:30]} Nc7 {[%emt 0:03:30]} 15. Nd4 {[%emt 0:06:30]} Nc6 {[%emt 0:32:26]} 16. Ndb5 {[%emt 0:03:30]} Ne8 {[%emt 0:01:45]} 17. Rfb1 {[%emt 0:06:30]} Rf7 {[%emt 0:06:28]} 18. Bh5 {[%emt 0:00:30]} g6 {[%emt 0:00:29]} 19. Bd1 {[%emt 0:00:30]} f4 {[%emt 0:00:39]} 20. Qd3 {[%emt 0:03:30]} Bc5 {[%emt 0:00:49]} 21. Bf3 {[%emt 0:01:30]} Qh4 {[%emt 0:01:42]} 22. Qe2 {[%emt 0:00:30]} a6 {[%emt 0:03:33]} 23. d4 {[%emt 0:01:30]} Be7 {[%emt 0:00:59]} 24. Nd6 {[%emt 0:00:30]} Nxd6 {[%emt 0:00:50]} 25. exd6 {[%emt 0:00:30]} Bf6 {[%emt 0:00:07]} 26. Nc2 {[%emt 0:01:30]} g5 {[%emt 0:00:41]} 27. Rxb6 {[%emt 0:00:30]} g4 {[%emt 0:00:13]} 28. Bxg4 {[%emt 0:01:30]} Rg7 {[%emt 0:00:35]} 29. Bf3 {[%emt 0:01:30]} Bc8 {[%emt 0:00:06]} 30. Rab1 {[%emt 0:01:30]} Qg5 {[%emt 0:00:44]} 31. Rxc6 {[%emt 0:00:30]} dxc6 {[%emt 0:00:26]} 32. Bxc6 {[%emt 0:00:30]} Bb7 {[%emt 0:00:57]} 33. Qxe6+ {[%emt 0:01:30]} Kh8 {[%emt 0:00:30]} 34. Rxb7 {[%emt 0:00:00]} Rxb7 {[%emt 0:00:38]} 35. Bxb7 {[%emt 0:00:00]} Rb8 {[%emt 0:00:00]} 36. Ne1 {[%emt 0:00:30]} Qg7 {[%emt 0:00:47]} 37. d7 {[%emt 0:02:30]} a5 {[%emt 0:00:31]} 38. Bc8 {[%emt 0:00:30]} h5 {[%emt 0:00:31]} 39. d5 {[%emt 0:00:30]} Bxc3 {[%emt 0:00:39]} 40. d8=Q+ {[%emt 0:00:30]} 1-0

[Event "Turkish Cup 2024"]
[Site "Denizli"]
[Date "2024.07.31"]
[Round "2"]
[White "Kirilmaz, Emre"]
[Black "Ceylan, Enes Arda"]
[Result "0-1"]
[ECO "A45"]
[WhiteElo "2223"]
[BlackElo "1783"]
[Annotator "RC"]
[PlyCount "110"]
[EventDate "2024.08.01"]
[EventType "swiss"]
[EventCountry "TUR"]
[SourceTitle "playchess.com"]
[Source "ChessBase"]
[SourceQuality "1"]
[TimeControl "5400+30"]

1. d4 Nf6 2. Bg5 Ne4 3. Bf4 c5 4. f3 Qa5+ 5. c3 Nf6 6. d5 Qb6 7. b3 g6 8. e4 d6 9. Qd2 Bg7 10. Bh6 O-O 11. Bxg7 Kxg7 12. c4 e6 13. Nc3 exd5 14. exd5 Re8+ 15. Kf2 Na6 16. Nge2 Bd7 17. Ng3 Re5 18. f4 Re7 19. Be2 Rae8 20. Rhf1 h5 21. h4 Bg4 22. Bf3 Qa5 23. Qb2 Kg8 24. Nb5 Qd8 25. Qd2 Qd7 26. Nc3 Nc7 27. Qb2 Bxf3 28. gxf3 Re3 29. Kg2 Qe7 30. Nd1 Rd3 31. Nc3 Qe3 32. Rf2 Rxc3 33. Nf1 Qd4 34. Rd2 Rd3 35. Qxd4 Rxd4 36. Kf2 Rxd2+ 37. Nxd2 b5 38. cxb5 Ncxd5 39. Nc4 Nxf4 40. Nxd6 Re2+ 41. Kg1 N6d5 42. Ne4 Rg2+ 43. Kh1 Ne3 44. Re1 Ne2 45. Rf1 f5 46. Rf2 Rg1+ 47. Kh2 Nf1+ 48. Rxf1 Rxf1 49. Nxc5 Rxf3 50. a4 Rf2+ 51. Kh1 f4 52. a5 Ng3+ 53. Kg1 Rd2 54. b6 f3 55. b7 Rg2# 0-1

[Event "Turkish Cup 2024"]
[Site "Denizli"]
[Date "2024.07.31"]
[Round "2"]
[White "Yildiz, Serdar Murat"]
[Black "Ersin, Deniz"]
[Result "1/2-1/2"]
[ECO "B09"]
[WhiteElo "2182"]
[BlackElo "1648"]
[Annotator "RC"]
[PlyCount "138"]
[EventDate "2024.08.01"]
[EventType "swiss"]
[EventCountry "TUR"]
[SourceTitle "playchess.com"]
[Source "ChessBase"]
[SourceQuality "1"]
[TimeControl "5400+30"]

1. e4 {[%emt 0:01:00]} d6 {[%emt 0:01:00]} 2. d4 {[%emt 0:00:00]} Nf6 {[%emt 0:00:30]} 3. Nc3 {[%emt 0:00:00]} g6 {[%emt 0:00:30]} 4. f4 {[%emt 0:00:00]} Bg7 {[%emt 0:00:00]} 5. Nf3 {[%emt 0:00:00]} c5 {[%emt 0:00:00]} 6. Bb5+ {[%emt 0:00:00]} Bd7 {[%emt 0:00:30]} 7. e5 {[%emt 0:00:00]} Ng4 {[%emt 0:00:30]} 8. e6 {[%emt 0:00:30]} fxe6 {[%emt 0:00:00]} 9. Ng5 {[%emt 0:00:00]} Bxb5 {[%emt 0:00:00]} 10. Nxb5 {[%emt 0:01:00]} Qa5+ {[%emt 0:03:30]} 11. c3 {[%emt 0:00:30]} Qxb5 {[%emt 0:07:30]} 12. Nxe6 {[%emt 0:00:30]} Qd7 {[%emt 0:00:30]} 13. Qxg4 {[%emt 0:01:30]} Bf6 {[%emt 0:04:30]} 14. f5 {[%emt 0:12:30]} Rg8 {[%emt 0:03:30]} 15. dxc5 {[%emt 0:07:30]} Kf7 {[%emt 0:07:30]} 16. Ng5+ {[%emt 0:07:30]} Kg7 {[%emt 0:06:30]} 17. O-O {[%emt 0:02:30]} Nc6 {[%emt 0:02:30]} 18. Nxh7 {[%emt 0:05:30]} Ne5 {[%emt 0:03:30]} 19. Nxf6 {[%emt 0:01:30]} exf6 {[%emt 0:00:30]} 20. Qd4 {[%emt 0:04:30]} dxc5 {[%emt 0:03:30]} 21. Qxc5 {[%emt 0:01:30]} b6 {[%emt 0:00:30]} 22. Qd4 {[%emt 0:01:30]} Qxd4+ {[%emt 0:01:30]} 23. cxd4 {[%emt 0:00:00]} Nc6 {[%emt 0:00:00]} 24. Be3 {[%emt 0:01:00]} Rad8 {[%emt 0:01:00]} 25. Rac1 {[%emt 0:02:30]} Rc8 {[%emt 0:02:30]} 26. fxg6 {[%emt 0:00:30]} Kxg6 {[%emt 0:00:30]} 27. Rf3 {[%emt 0:07:30]} Nb4 {[%emt 0:04:30]} 28. Rcf1 {[%emt 0:05:30]} Nd5 {[%emt 0:01:30]} 29. Rg3+ {[%emt 0:03:30]} Kf7 {[%emt 0:00:30]} 30. Rxg8 {[%emt 0:01:30]} Kxg8 {[%emt 0:01:30]} 31. Rc1 {[%emt 0:00:30]} Re8 {[%emt 0:00:30]} 32. Bd2 {[%emt 0:02:30]} Re4 {[%emt 0:00:30]} 33. Bc3 {[%emt 0:00:30]} b5 {[%emt 0:01:30]} 34. a3 {[%emt 0:00:30]} Re2 {[%emt 0:04:30]} 35. Kf1 {[%emt 0:01:30]} Nxc3 {[%emt 0:00:00]} 36. Rxc3 {[%emt 0:07:30]} Rxb2 {[%emt 0:00:00]} 37. Rc8+ {[%emt 0:00:30]} Kf7 {[%emt 0:00:30]} 38. Rc7+ {[%emt 0:00:00]} Ke6 {[%emt 0:00:30]} 39. Rxa7 {[%emt 0:00:00]} b4 {[%emt 0:00:30]} 40. axb4 {[%emt 0:00:30]} Rxb4 {[%emt 0:00:30]} 41. Ra6+ {[%emt 0:00:30]} Kf5 {[%emt 0:02:30]} 42. Rd6 {[%emt 0:01:30]} Rb2 {[%emt 0:00:30]} 43. h3 {[%emt 0:00:30]} Kg5 {[%emt 0:00:30]} 44. Rd8 {[%emt 0:01:30]} Kf4 {[%emt 0:01:30]} 45. Rf8 {[%emt 0:01:30]} Kg5 {[%emt 0:03:30]} 46. Kg1 {[%emt 0:01:30]} Rd2 {[%emt 0:01:30]} 47. Rd8 {[%emt 0:00:30]} Kf4 {[%emt 0:01:30]} 48. Kh2 {[%emt 0:00:00]} Kf5 {[%emt 0:01:30]} 49. Kg3 {[%emt 0:01:00]} Ke6 {[%emt 0:00:30]} 50. Re8+ {[%emt 0:01:30]} Kf5 {[%emt 0:01:30]} 51. Rd8 {[%emt 0:03:21]} Ke6 {[%emt 0:00:30]} 52. d5+ {[%emt 0:02:11]} Ke7 {[%emt 0:00:30]} 53. Ra8 {[%emt 0:00:49]} Rxd5 {[%emt 0:00:30]} 54. Ra7+ {[%emt 0:00:01]} Kf8 {[%emt 0:00:30]} 55. Kf4 {[%emt 0:03:15]} Kg8 {[%emt 0:01:30]} 56. g4 {[%emt 0:00:14]} Rb5 {[%emt 0:02:30]} 57. h4 {[%emt 0:00:30]} Rc5 {[%emt 0:00:30]} 58. h5 {[%emt 0:00:00]} Rb5 {[%emt 0:00:30]} 59. h6 {[%emt 0:00:01]} Rg5 {[%emt 0:00:00]} 60. Rb7 {[%emt 0:07:15]} Rg6 {[%emt 0:02:00]} 61. h7+ {[%emt 0:00:31]} Kh8 {[%emt 0:00:00]} 62. Rf7 {[%emt 0:00:00]} Rh6 {[%emt 0:01:00]} 63. Kf5 {[%emt 0:04:16]} Rh4 {[%emt 0:04:30]} 64. g5 {[%emt 0:02:15]} fxg5 {[%emt 0:00:30]} 65. Kg6 {[%emt 0:00:57]} Rf4 {[%emt 0:00:00]} 66. Ra7 {[%emt 0:00:18]} Rf8 {[%emt 0:00:00]} 67. Kxg5 {[%emt 0:00:00]} Rb8 {[%emt 0:01:30]} 68. Rf7 {[%emt 0:00:00]} Rb5+ {[%emt 0:00:30]} 69. Kg6 {[%emt 0:00:00]} Rb6+ {[%emt 0:00:00]} 1/2-1/2